fUSD/lending_fUSD_20240425
["ID","MTS","AMOUNT","RATE_DAILY","PERIOD"]
[323516383,1714062655580,-500.0,0.00011812,2]
[323516384,1714062655589,-500.0,0.00011812,2]
[323516385,1714062655599,-639.30171791,0.00011812,2]
[323516386,1714062655609,-500.0,0.00011812,2]
[323516387,1714062655623,-500.0,0.00011812,2]
[323516388,1714062655632,-500.0,0.00011812,2]
[323516389,1714062655641,-500.0,0.00011812,2]
[323516390,1714062655651,-500.0,0.00011812,2]
[323516391,1714062655661,-343.84008115,0.00011812,2]
[323516392,1714062655670,-500.0,0.00011812,2]
[323516393,1714062655679,-500.0,0.00011812,2]
[323516394,1714062655690,-500.0,0.00011812,2]
[323516395,1714062655699,-500.0,0.00011812,2]
[323516396,1714062655709,-500.0,0.00011812,2]
[323516397,1714062655719,-500.0,0.00011812,2]
[323516398,1714062655729,-500.0,0.00011812,2]
[323516399,1714062655738,-500.0,0.00011812,2]
[323516400,1714062655747,-500.0,0.00011812,2]
[323516401,1714062655758,-500.0,0.00011812,2]
[323516402,1714062655767,-447.70667053,0.00011812,2]
[323516403,1714062655777,-500.0,0.00011812,2]
[323516404,1714062655786,-500.0,0.00011812,2]
[323516405,1714062655795,-500.0,0.00011812,2]
[323516406,1714062655804,-500.0,0.00011812,2]
[323516407,1714062655813,-552.42,0.00011812,2]
[323516408,1714062655822,-500.0,0.00011812,2]
[323516409,1714062655831,-500.0,0.00011812,2]
[323516410,1714062655841,-500.0,0.00011812,2]
[323516411,1714062655850,-500.0,0.00011812,2]
[323516412,1714062655866,-500.0,0.00011812,2]
[323516413,1714062655875,-228.87,0.00011812,2]
[323516414,1714062655884,-500.0,0.00011812,2]
[323516415,1714062655893,-500.0,0.00011812,2]
[323516416,1714062655905,-500.0,0.00011812,2]
[323516417,1714062655914,-500.0,0.00011812,2]
[323516418,1714062655923,-500.0,0.00011812,2]
[323516419,1714062655932,-500.0,0.00011812,2]
[323516420,1714062655941,-500.0,0.00011812,2]
[323516421,1714062655951,-500.0,0.00011812,2]
[323516422,1714062655960,-500.0,0.00011812,2]
[323516423,1714062655969,-500.0,0.00011812,2]
[323516424,1714062655978,-500.0,0.00011812,2]
[323516425,1714062655988,-1188.84,0.00011812,2]
[323516426,1714062655997,-500.0,0.00011812,2]
[323516427,1714062656006,-500.0,0.00011812,2]
[323516428,1714062656015,-500.0,0.00011812,2]
[323516429,1714062656024,-500.0,0.00011812,2]
[323516430,1714062656034,-656.96,0.00011812,2]
[323516431,1714062656043,-1258.16,0.00011812,2]
[323516432,1714062656053,-681.04,0.00011812,2]
[323516433,1714062656061,-985.92,0.00011812,2]
[323516434,1714062656071,-620.95,0.00011812,2]
[323516435,1714062656080,-500.0,0.00011812,2]
[323516436,1714062656089,-908.49,0.00011812,2]
[323516437,1714062656099,-500.0,0.00011812,2]
[323516438,1714062656109,-500.0,0.00011812,2]
[323516439,1714062656121,-500.0,0.00011812,2]
[323516440,1714062656130,-500.0,0.00011812,2]
[323516441,1714062656139,-500.0,0.00011812,2]
[323516442,1714062656149,-500.0,0.00011812,2]
[323516443,1714062656158,-3558.91,0.00011812,2]
[323516444,1714062656167,-591.58,0.00011812,2]
[323516445,1714062656176,-809.45,0.00011812,2]
[323516446,1714062656186,-500.0,0.00011812,2]
[323516447,1714062656195,-799.27,0.00011812,2]
[323516448,1714062656204,-500.0,0.00011812,2]
[323516449,1714062656213,-500.0,0.00011812,2]
[323516450,1714062656222,-500.0,0.00011812,2]
[323516451,1714062656232,-655.06,0.00011812,2]
[323516452,1714062656242,-3035.45,0.00011812,2]
[323516453,1714062656251,-500.0,0.00011812,2]
[323516454,1714062656260,-1822.08,0.00011812,2]
[323516455,1714062656270,-500.0,0.00011812,2]
[323516456,1714062656278,-501.5,0.00011812,2]
[323516457,1714062656287,-500.0,0.00011812,2]
[323516458,1714062656297,-548.06,0.00011812,2]
[323516459,1714062656306,-1483.01,0.00011812,2]
[323516460,1714062656315,-1450.09,0.00011812,2]
[323516461,1714062656324,-500.0,0.00011812,2]
[323516462,1714062656333,-500.0,0.00011812,2]
[323516463,1714062656342,-615.93,0.00011812,2]
[323516464,1714062656351,-500.0,0.00011812,2]
[323516465,1714062656360,-1987.4,0.00011812,2]
[323516466,1714062656372,-500.0,0.00011812,2]
[323516467,1714062656382,-506.18,0.00011812,2]
[323516468,1714062656391,-4462.84,0.00011812,2]
[323516469,1714062656400,-1333.68,0.00011812,2]
[323516470,1714062656410,-964.33,0.00011812,2]
[323516471,1714062656419,-500.0,0.00011812,2]
[323516472,1714062656428,-7332.09,0.00011812,2]
[323516473,1714062656438,-500.0,0.00011812,2]
[323516474,1714062656446,-1003.07,0.00011812,2]
[323516475,1714062656456,-583.65,0.00011812,2]
[323516476,1714062656467,-795.02,0.00011812,2]
[323516477,1714062656476,-500.0,0.00011812,2]
[323516478,1714062656486,-1713.94,0.00011812,2]
[323516479,1714062656495,-500.0,0.00011812,2]
[323516480,1714062656504,-500.0,0.00011812,2]
[323516481,1714062656513,-500.0,0.00011812,2]
[323516482,1714062656522,-500.0,0.00011812,2]
[323516483,1714062656532,-500.0,0.00011813,2]
[323516484,1714062656542,-693.56,0.00011813,2]
[323516485,1714062656553,-500.0,0.00011813,2]
[323516486,1714062656562,-551.5,0.00011813,2]
[323516487,1714062656573,-528.55,0.00011813,2]
[323516488,1714062656582,-862.75,0.00011813,2]
[323516489,1714062656591,-500.0,0.00011813,2]
[323516490,1714062656600,-542.02,0.00011813,2]
[323516491,1714062656609,-500.0,0.00011813,2]
[323516492,1714062656620,-608.5,0.00011813,2]
[323516493,1714062656630,-803.28,0.00011813,2]
[323516494,1714062656640,-500.0,0.00011813,2]
[323516495,1714062656650,-585.18,0.00011813,2]
[323516496,1714062656660,-543.43,0.00011813,2]
[323516497,1714062656669,-500.0,0.00011813,2]
[323516498,1714062656679,-508.69,0.00011813,2]
[323516499,1714062656689,-500.0,0.00011813,2]
[323516500,1714062656698,-939.16,0.00011813,2]
[323516501,1714062656707,-500.0,0.00011813,2]
[323516502,1714062656718,-500.0,0.00011813,2]
[323516503,1714062656727,-500.0,0.00011813,2]
[323516504,1714062656737,-560.64,0.00011813,2]
[323516505,1714062656747,-500.0,0.00011813,2]
[323516506,1714062656757,-500.0,0.00011813,2]
[323516507,1714062656768,-500.0,0.00011813,2]
[323516508,1714062656778,-519.65,0.00011813,2]
[323516509,1714062656787,-500.0,0.00011813,2]
[323516510,1714062656797,-500.0,0.00011813,2]
[323516511,1714062656806,-500.0,0.00011813,2]
[323516512,1714062656815,-500.0,0.00011813,2]
[323516513,1714062656824,-500.0,0.00011813,2]
[323516514,1714062656833,-622.86,0.00011813,2]
[323516515,1714062656844,-500.0,0.00011813,2]
[323516516,1714062656854,-500.0,0.00011813,2]
[323516517,1714062656866,-740.18,0.00011813,2]
[323516518,1714062656879,-933.61,0.00011813,2]
[323516519,1714062656890,-500.0,0.00011813,2]
[323516520,1714062656899,-517.78,0.00011813,2]
[323516521,1714062656909,-500.0,0.00011813,2]
[323516522,1714062656918,-500.0,0.00011813,2]
[323516523,1714062656928,-500.0,0.00011813,2]
[323516524,1714062656937,-500.0,0.00011813,2]
[323516525,1714062656948,-500.0,0.00011813,2]
[323516526,1714062656959,-751.66,0.00011813,2]
[323516527,1714062656969,-500.0,0.00011813,2]
[323516528,1714062656978,-500.0,0.00011813,2]
[323516529,1714062656988,-500.0,0.00011813,2]
[323516530,1714062656998,-500.0,0.00011813,2]
[323516531,1714062657007,-500.0,0.00011813,2]
[323516532,1714062657017,-500.0,0.00011813,2]
[323516533,1714062657027,-500.0,0.00011813,2]
[323516534,1714062657036,-500.0,0.00011813,2]
[323516535,1714062657046,-665.28,0.00011813,2]
[323516536,1714062657055,-150.0,0.00011813,2]
[323516537,1714062657065,-500.0,0.00011813,2]
[323516538,1714062657075,-500.0,0.00011813,2]
[323516539,1714062657085,-907.44,0.00011813,2]
[323516540,1714062657094,-500.0,0.00011813,2]
[323516541,1714062657105,-500.0,0.00011813,2]
[323516542,1714062657114,-663.93,0.00011813,2]
[323516543,1714062657124,-500.0,0.00011813,2]
[323516544,1714062657134,-500.0,0.00011813,2]
[323516545,1714062657143,-500.0,0.00011813,2]
[323516546,1714062657153,-500.0,0.00011813,2]
[323516547,1714062657162,-500.0,0.00011813,2]
[323516548,1714062657172,-500.0,0.00011813,2]
[323516549,1714062657181,-500.0,0.00011813,2]
[323516550,1714062657191,-500.0,0.00011813,2]
[323516551,1714062657201,-500.0,0.00011813,2]
[323516552,1714062657210,-512.69,0.00011813,2]
[323516553,1714062657220,-500.0,0.00011813,2]
[323516554,1714062657231,-500.0,0.00011813,2]
[323516555,1714062657242,-705.33,0.00011813,2]
[323516556,1714062657252,-808.52,0.00011813,2]
[323516557,1714062657261,-641.46,0.00011813,2]
[323516558,1714062657271,-264.17473392,0.00011813,2]
[323516559,1714062657281,-717.99,0.00011813,2]
[323516560,1714062657292,-500.0,0.00011813,2]
[323516561,1714062657301,-703.41,0.00011813,2]
[323516562,1714062657310,-500.0,0.00011813,2]
[323516563,1714062657320,-500.0,0.00011813,2]
[323516564,1714062657330,-707.72,0.00011813,2]
[323516565,1714062657340,-500.0,0.00011813,2]
[323516566,1714062657351,-500.0,0.00011813,2]
[323516567,1714062657360,-9481.65,0.00011813,2]
[323516568,1714062657371,-500.0,0.00011813,2]
[323516569,1714062657381,-500.0,0.00011813,2]
[323516570,1714062657391,-500.0,0.00011813,2]
[323516571,1714062657401,-500.0,0.00011813,2]
[323516572,1714062657411,-500.0,0.00011813,2]
[323516573,1714062657421,-959.2,0.00011813,2]
[323516574,1714062657431,-500.0,0.00011813,2]
[323516575,1714062657441,-500.0,0.00011813,2]
[323516576,1714062657452,-24576.39,0.00011813,2]
[323516577,1714062657461,-500.0,0.00011813,2]
[323516578,1714062657471,-460.0,0.00011813,2]
[323516579,1714062657481,-500.0,0.00011813,2]
[323516580,1714062657491,-500.0,0.00011813,2]
[323516581,1714062657501,-531.67,0.00011813,2]
[323516582,1714062657510,-2999.29,0.00011813,2]
[323516583,1714062657520,-585.03,0.00011813,2]
[323516584,1714062657530,-1007.84,0.00011813,2]
[323516585,1714062657540,-608.96,0.00011813,2]
[323516586,1714062657549,-1879.53,0.00011813,2]
[323516587,1714062657558,-588.96,0.00011813,2]
[323516588,1714062657568,-500.0,0.00011813,2]
[323516589,1714062657577,-500.0,0.00011813,2]
[323516590,1714062657586,-500.0,0.00011813,2]
[323516591,1714062657595,-500.0,0.00011813,2]
[323516592,1714062657604,-1078.57,0.00011813,2]
[323516593,1714062657615,-500.0,0.00011813,2]
[323516594,1714062657627,-500.0,0.00011813,2]
[323516595,1714062657637,-1535.0,0.00011813,2]
[323516596,1714062657646,-500.0,0.00011813,2]
[323516597,1714062657656,-4072.05,0.00011813,2]
[323516598,1714062657666,-516.91,0.00011813,2]
[323516599,1714062657675,-967.3,0.00011813,2]
[323516600,1714062657685,-3190.06,0.00011813,2]
[323516601,1714062657695,-500.0,0.00011813,2]
[323516602,1714062657704,-500.0,0.00011813,2]
[323516603,1714062657715,-500.0,0.00011813,2]
[323516604,1714062657724,-526.95,0.00011813,2]
[323516605,1714062657734,-1391.72,0.00011813,2]
[323516606,1714062657743,-500.0,0.00011813,2]
[323516607,1714062657753,-979.73,0.00011813,2]
[323516608,1714062657763,-500.0,0.00011813,2]
[323516609,1714062657773,-573.0,0.00011813,2]
[323516610,1714062657783,-893.01,0.00011813,2]
[323516611,1714062657793,-500.0,0.00011813,2]
[323516612,1714062657803,-500.0,0.00011813,2]
[323516613,1714062657812,-320.18467818,0.00011813,2]
[323516614,1714062657822,-704.66,0.00011813,2]
[323516615,1714062657831,-553.79,0.00011813,2]
[323516616,1714062657844,-500.0,0.00011813,2]
[323516617,1714062657855,-500.0,0.00011813,2]
[323516618,1714062657872,-1850.58,0.00011813,2]
[323516619,1714062657882,-500.0,0.00011813,2]
[323516620,1714062657891,-500.0,0.00011813,2]
[323516621,1714062657901,-500.0,0.00011813,2]
[323516622,1714062657911,-3297.58,0.00011813,2]
[323516623,1714062657920,-500.0,0.00011813,2]
[323516624,1714062657930,-575.83,0.00011813,2]
[323516625,1714062657941,-313.45113752,0.00011813,2]
[323516626,1714062657951,-500.0,0.00011813,2]
[323516627,1714062657961,-500.0,0.00011813,2]
[323516628,1714062657970,-576.79,0.00011813,2]
[323516629,1714062657979,-717.19,0.00011813,2]
[323516630,1714062657990,-500.0,0.00011813,2]
[323516631,1714062658000,-1238.94,0.00011813,2]
[323516632,1714062658009,-500.0,0.00011813,2]
[323516633,1714062658018,-500.0,0.00011813,2]
[323516634,1714062658027,-603.61,0.00011813,2]
[323516635,1714062658037,-500.0,0.00011814,2]
[323516636,1714062658047,-500.0,0.00011814,2]
[323516637,1714062658057,-500.0,0.00011814,2]
[323516638,1714062658066,-500.0,0.00011814,2]
[323516639,1714062658076,-500.0,0.00011814,2]
[323516640,1714062658085,-500.0,0.00011814,2]
[323516641,1714062658095,-500.0,0.00011814,2]
[323516642,1714062658104,-500.0,0.00011814,2]
[323516643,1714062658114,-500.0,0.00011814,2]
[323516644,1714062658124,-500.0,0.00011814,2]
[323516645,1714062658133,-500.0,0.00011814,2]
[323516646,1714062658142,-500.0,0.00011814,2]
[323516647,1714062658151,-500.0,0.00011814,2]
[323516648,1714062658160,-500.0,0.00011814,2]
[323516649,1714062658169,-500.0,0.00011814,2]
[323516650,1714062658178,-500.0,0.00011814,2]
[323516651,1714062658187,-500.0,0.00011814,2]
[323516652,1714062658196,-500.0,0.00011814,2]
[323516653,1714062658204,-550.0,0.0001186,2]
[323516654,1714062658213,-286.0,0.0001188,2]
[323516655,1714062658222,-1191.9588,0.000119,2]
[323516656,1714062658231,-1000.0,0.000119,2]
[323516657,1714062658240,-19468.7833,0.000119,2]
[323516658,1714062658250,-3002.73065059,0.000119,2]
[323516659,1714062658259,-215.13933441,0.000119,2]
[323516660,1714062658269,-1400.0,0.000119,4]
[323516661,1714062658279,-741.21757554,0.000119,2]
[323516662,1714062658288,-1000.0,0.00011903,2]
[323516663,1714062658297,-500.0,0.00011903,2]
[323516664,1714062658306,-1000.0,0.00011904,2]
[323516665,1714062658316,-1000.0,0.00011904,2]
[323516666,1714062658325,-500.0,0.00011904,2]
[323516667,1714062658335,-150.0,0.00011912,2]
[323516668,1714062658344,-1846.6909689,0.00011975,2]
[323516669,1714062658353,-8338.8206928,0.00011988,2]
[323516670,1714062658363,-411.2152931,0.00011988,2]
[323516671,1714062658375,-223.68295345,0.00011988,2]
[323516672,1714062658385,-223.68295345,0.0001199,2]
[323516673,1714062658395,-3099.31909228,0.00011991,2]
[323516674,1714062658405,-7050.1310737,0.00011992,2]
[323516675,1714062658414,-5761.4414546,0.00011992,2]
[323516676,1714062658424,-4472.7518355,0.00011992,2]
[323516677,1714062658433,-3184.0622164,0.00011992,2]
[323516678,1714062658443,-1895.3725973,0.00011992,2]
[323516679,1714062658453,-379.89475,0.00011992,2]
[323516680,1714062658462,-348.574207,0.00011992,2]
[323516681,1714062658473,-317.2536639,0.00011992,2]
[323516682,1714062658482,-285.9331209,0.00011992,2]
[323516683,1714062658493,-254.6125778,0.00011992,2]
[323516684,1714062658503,-150.0,0.00011995,2]
[323516685,1714062658512,-343.3536616,0.00011996,2]
[323516686,1714062658521,-313.6027267,0.00011997,2]
[323516687,1714062658530,-155.0,0.00011998,2]
[323516688,1714062658540,-155.0,0.00011998,2]
[323516689,1714062658549,-236.51827636,0.00011998,2]
[323516690,1714062658559,-3431.31480734,0.00011998,2]
[323516691,1714062658568,-2321.74176097,0.00011998,2]
[323516692,1714062658578,-155.0,0.00011998,2]
[323516693,1714062658587,-408.45355212,0.00011998,2]
[323516694,1714062658596,-155.0,0.00011998,2]
[323516695,1714062658606,-166.27150602,0.00011998,2]
[323516696,1714062658617,-406.05313333,0.00011998,2]
[323516697,1714062658627,-156.60467947,0.00011998,2]
[323516698,1714062658635,-245.56779934,0.00011998,2]
[323516699,1714062658644,-155.59422064,0.00011998,2]
[323516700,1714062658653,-360.52951426,0.00011998,2]
[323516701,1714062658662,-221.05039064,0.00011998,2]
[323516702,1714062658671,-212.27868082,0.00011998,2]
[323516703,1714062658680,-162.68520801,0.00011998,2]
[323516704,1714062658689,-157.92129474,0.00011998,2]
[323516705,1714062658699,-1351.89634566,0.00011998,2]
[323516706,1714062658708,-156.12654115,0.00011998,2]
[323516707,1714062658718,-155.42199688,0.00011998,2]
[323516708,1714062658727,-246.50538896,0.00011998,2]
[323516709,1714062658737,-224.89471763,0.00011998,2]
[323516710,1714062658746,-423.8176794,0.00011998,2]
[323516711,1714062658756,-155.1119593,0.00011998,2]
[323516712,1714062658765,-288.25774565,0.00011998,2]
[323516713,1714062658775,-309.59058991,0.00011998,2]
[323516714,1714062658784,-166.3767378,0.00011998,2]
[323516715,1714062658793,-195.83253818,0.00011998,2]
[323516716,1714062658802,-238.25600323,0.00011998,2]
[323516717,1714062658811,-2343.18620616,0.00011998,2]
[323516718,1714062658821,-239.43929096,0.00011998,2]
[323516719,1714062658830,-207.85411425,0.00011998,2]
[323516720,1714062658841,-216.05167049,0.00011998,2]
[323516721,1714062658851,-207.88378701,0.00011998,2]
[323516722,1714062659041,-70048.64032496,0.00011998,2]
[323516723,1714062659431,-500.0,0.0001099,2]
[323516724,1714062659440,-500.0,0.00011264,2]
[323516725,1714062659450,-1343.36758848,0.000113,4]
[323516726,1714062659482,-527.41999792,0.000113,4]
[323516727,1714062659493,-2397.51560316,0.000113,4]
[323516728,1714062660194,-670.80354643,0.000113,4]
[323516729,1714062676581,546239.17208409,8.219e-05,2]
[323516730,1714062861428,431.02122055,8.219e-05,2]
[323516733,1714063080212,800.17,8.219e-05,2]
[323516734,1714063170220,174.65,7.296e-05,2]
[323516735,1714063334822,250.0,8.399e-05,2]
[323516736,1714063473634,9556.21,8.474e-05,2]
[323516737,1714063502703,156.28,8.486e-05,2]
[323516738,1714063502893,156.28,8.488e-05,2]
[323516739,1714063503103,156.28,8.49e-05,2]
[323516740,1714063503344,156.28,8.493e-05,2]
[323516741,1714063503540,156.28,8.495e-05,2]
[323516742,1714063503943,156.28,8.498e-05,2]
[323516743,1714063504220,156.28,8.5e-05,2]
[323516744,1714063532245,538.116345,8.501e-05,2]
[323516745,1714063534183,23900.0,8.263e-05,2]
[323516746,1714063544476,4584.3685979,8.502e-05,2]
[323516747,1714063546563,35264.29285231,8.502e-05,2]
[323516748,1714063549928,255.48323707,8.501e-05,2]
[323516749,1714063551550,1351.89634566,8.502e-05,2]
[323516750,1714063561393,4248.42,8.479e-05,2]
[323516751,1714063570359,206.8225704,8.501e-05,2]
[323516752,1714063578836,1294.31423164,8.502e-05,2]
[323516753,1714063610109,-156.28,8.502e-05,2]
[323516754,1714063610130,-12.37425208,8.503e-05,2]
[323516755,1714063650600,1200.0,0.00025111,120]
[323516756,1714063660385,533.25146559,8.502e-05,2]
[323516757,1714063660608,942.29,8.219e-05,2]
[323516758,1714063720135,153.51880261,0.00025,100]
[323516759,1714063759081,-1389.54482701,8.503e-05,2]
[323516760,1714063759104,-199.93,8.503e-05,2]
[323516761,1714063759126,-156.28,8.505e-05,2]
[323516762,1714063759146,-414.2489307,8.506e-05,2]
[323516763,1714063765232,936.97,8.472e-05,2]
[323516769,1714063831885,-250.0,8.503e-05,2]
[323516770,1714063831895,-5133.31992279,8.506e-05,2]
[323516771,1714063831904,-1852.42,8.507e-05,2]
[323516772,1714063831914,-156.28,8.507e-05,2]
[323516773,1714063831923,-156.28,8.509e-05,2]
[323516774,1714063831933,-156.28,8.512e-05,2]
[323516775,1714063831941,-156.28,8.514e-05,2]
[323516776,1714063831951,-156.28,8.516e-05,2]
[323516777,1714063831960,-156.28,8.519e-05,2]
[323516778,1714063831969,-150.0,8.52e-05,2]
[323516779,1714063832199,-156.28,8.521e-05,2]
[323516780,1714063832208,-156.28,8.523e-05,2]
[323516781,1714063832217,-156.28,8.526e-05,2]
[323516782,1714063832230,-156.28,8.528e-05,2]
[323516784,1714063832241,-584.11,8.786e-05,2]
[323516786,1714063832250,-584.11,8.81e-05,2]
[323516788,1714063832259,-584.11,8.834e-05,2]
[323516789,1714063832271,-584.11,8.858e-05,2]
[323516790,1714063832281,-584.11,8.882e-05,2]
[323516791,1714063832291,-150.0,8.904e-05,2]
[323516792,1714063832302,-584.11,8.907e-05,2]
[323516793,1714063832312,-584.11,8.931e-05,2]
[323516794,1714063832321,-584.11,8.955e-05,2]
[323516795,1714063832331,-584.11,8.979e-05,2]
[323516796,1714063832340,-584.11,9.003e-05,2]
[323516797,1714063832349,-11.3819036,9.027e-05,2]
[323516798,1714063832360,-572.7280964,9.027e-05,2]
[323516799,1714063832370,-157.57,9.044e-05,2]
[323516800,1714063832378,-584.11,9.051e-05,2]
[323516801,1714063832388,-584.11,9.075e-05,2]
[323516802,1714063832398,-584.11,9.099e-05,2]
[323516803,1714063832407,-178.79,9.111e-05,2]
[323516804,1714063832416,-532.55381368,9.124e-05,2]
[323516805,1714063832427,-51.55618632,9.124e-05,2]
[323516806,1714063832437,-165.25,9.142e-05,2]
[323516807,1714063832446,-584.11,9.148e-05,2]
[323516808,1714063832455,-584.11,9.172e-05,2]
[323516809,1714063832468,-584.11,9.196e-05,2]
[323516810,1714063832477,-584.11,9.22e-05,2]
[323516811,1714063832491,-584.11,9.244e-05,2]
[323516812,1714063832500,-210.0,9.372e-05,2]
[323516813,1714063832509,-43.70106708,9.505e-05,2]
[323516814,1714063832536,-505.854995,9.505e-05,2]
[323516815,1714063832548,-450.44393792,9.505e-05,2]
[323516816,1714063832557,-350.69,9.531e-05,2]
[323516817,1714063832566,-936.97,9.531e-05,2]
[323516818,1714063832575,-261.89606208,9.533e-05,2]
[323516819,1714063832710,-88.79393792,9.533e-05,2]
[323516820,1714063832719,-350.69,9.536e-05,2]
[323516821,1714063832728,-166.51606208,9.538e-05,2]
[323516822,1714063832743,-184.17393792,9.538e-05,2]
[323516823,1714063832752,-350.69,9.541e-05,2]
[323516824,1714063832761,-350.69,9.543e-05,2]
[323516825,1714063832770,-350.69,9.546e-05,2]
[323516826,1714063832779,-350.69,9.548e-05,2]
[323516827,1714063832788,-350.69,9.551e-05,2]
[323516828,1714063832797,-350.69,9.553e-05,2]
[323516829,1714063832806,-350.69,9.556e-05,2]
[323516830,1714063832815,-350.69,9.558e-05,2]
[323516831,1714063832824,-350.69,9.561e-05,2]
[323516832,1714063832833,-350.69,9.563e-05,2]
[323516833,1714063832842,-350.69,9.566e-05,2]
[323516834,1714063832851,-350.69,9.568e-05,2]
[323516835,1714063832860,-150.0,9.57e-05,2]
[323516836,1714063832869,-350.69,9.571e-05,2]
[323516837,1714063832878,-350.69,9.573e-05,2]
[323516838,1714063832887,-350.69,9.576e-05,2]
[323516839,1714063832896,-350.69,9.578e-05,2]
[323516840,1714063832905,-553.91027235,9.66e-05,2]
[323516841,1714063833305,-5387.05570552,9.66e-05,2]
[323516842,1714063833318,-389.84087267,9.66e-05,2]
[323516843,1714063833329,-78222.23251103,9.66e-05,2]
[323516844,1714063833338,-887.45,9.67e-05,2]
[323516845,1714063833348,-150.99,9.67e-05,2]
[323516846,1714063833357,-150.99,9.67e-05,2]
[323516847,1714063833366,-1161.57,9.67e-05,2]
[323516848,1714063833375,-499.99,9.67e-05,2]
[323516849,1714063833384,-150.99,9.67e-05,2]
[323516850,1714063833394,-7205.7,9.67e-05,2]
[323516851,1714063833404,-150.99,9.67e-05,2]
[323516852,1714063833413,-999.99,9.67e-05,2]
[323516853,1714063833422,-1068.07,9.67e-05,2]
[323516854,1714063833432,-150.0,9.737e-05,2]
[323516855,1714063833441,-3166.61562779,0.0001,2]
[323516856,1714063833450,-787.34412016,0.0001,2]
[323516857,1714063833460,-323.93578704,0.00010085,2]
[323516858,1714063833469,-8403.3912,0.00010086,2]
[323516859,1714063833478,-942.29,0.00010397,2]
[323516860,1714063833489,-693.81036074,0.00010408,2]
[323516861,1714063833498,-936.97,0.0001059,2]
[323516862,1714063833507,-178.79,0.0001063,2]
[323516863,1714063833516,-178.61,0.0001064,2]
[323516864,1714063833526,-260.96563303,0.00010796,2]
[323516865,1714063833535,-150.0,0.000108,2]
[323516866,1714063833544,-150.0,0.000108,2]
[323516867,1714063833555,-150.0,0.000108,2]
[323516868,1714063833564,-157.57798806,0.000108,2]
[323516869,1714063833574,-154.19445388,0.000108,2]
[323516870,1714063833583,-150.0,0.000108,2]
[323516871,1714063833592,-576.35314373,0.00010858,2]
[323516872,1714063833601,-26060.1076,0.00010858,2]
[323516873,1714063833611,-19490.2739,0.0001089,2]
[323516874,1714063833620,-10000.0,0.00010891,2]
[323516875,1714063833629,-1500.0,0.000109,3]
[323516876,1714063833638,-582.89586779,0.00010946,2]
[323516877,1714063833648,-249.73515181,0.00010956,2]
[323516878,1714063833657,-401.67296256,0.00010956,2]
[323516879,1714063833667,-189.96343581,0.00010956,2]
[323516880,1714063833676,-350.03843225,0.00010956,2]
[323516881,1714063833686,-365.29691478,0.00010956,2]
[323516882,1714063833695,-437.64505364,0.00010956,2]
[323516883,1714063833705,-174.75665813,0.00010956,2]
[323516884,1714063833715,-338.92597898,0.00010957,2]
[323516885,1714063833725,-6835.76216026,0.00010957,2]
[323516886,1714063833736,-7591.08505196,0.00010957,2]
[323516887,1714063833745,-500.0,0.00010958,2]
[323516888,1714063833755,-500.0,0.00010958,2]
[323516889,1714063833765,-500.0,0.00010958,2]
[323516890,1714063833774,-500.0,0.00010958,2]
[323516891,1714063833783,-208.98,0.00010958,2]
[323516892,1714063833793,-500.0,0.00010958,2]